bitfinex-derivatives/quotes_BTCF0:USTF0_20251030
["timestamp","ask_amount","ask_price","bid_price","bid_amount"]
[1761808246942,0.04709,110990.0,110980.0,0.22914119]
[1761808247642,0.04709,110990.0,110980.0,0.68004379]
[1761808251149,0.001,110990.0,110980.0,0.68004379]
[1761808255641,0.001,110990.0,110980.0,0.68276379]
[1761808255845,0.001,110990.0,110980.0,0.81276379]
[1761808256246,0.001,110990.0,110980.0,0.68276379]
[1761808257357,0.04841621,111000.0,110990.0,0.1493145]
[1761808257549,0.04841621,111000.0,110990.0,1.25382898]
[1761808257749,0.04841621,111000.0,110990.0,1.25654898]
[1761808257951,0.02378472,111000.0,110990.0,1.41654898]
[1761808258549,0.02378472,111000.0,110990.0,1.43011026]
[1761808258749,0.47163038,111020.0,111010.0,0.05468]
[1761808258945,0.47163038,111020.0,111010.0,0.22921852]
[1761808259455,0.40689,111020.0,111010.0,0.22921852]
[1761808259659,0.40689,111020.0,111010.0,0.31929682]
[1761808260047,0.40789,111020.0,111010.0,0.31929682]
[1761808260458,0.04709,111020.0,111010.0,0.68009682]
[1761808260855,0.001,111020.0,111010.0,0.87342316]
[1761808261050,0.001,111020.0,111010.0,1.69614316]
[1761808261252,0.001,111020.0,111010.0,1.09614316]
[1761808261749,0.03339422,111020.0,111010.0,1.09614316]
[1761808261961,0.47163038,111040.0,111030.0,0.1488023]
[1761808262157,0.42554038,111040.0,111030.0,0.47412358]
[1761808262361,0.47163038,111040.0,111030.0,0.63510082]
[1761808262662,0.48538038,111040.0,111030.0,0.37052128]
[1761808262855,0.48538038,111040.0,111030.0,0.05880128]
[1761808263768,0.96079762,111040.0,111030.0,0.01356128]
[1761808263969,0.95807762,111040.0,111030.0,0.01356128]
[1761808264352,0.48538038,111040.0,111030.0,0.01356128]
[1761808264564,0.95807762,111040.0,111030.0,0.01356128]
[1761808264759,0.79710038,111040.0,111030.0,0.05868128]
[1761808267169,0.40689,111040.0,111030.0,0.07229128]
[1761808268161,0.42032,111040.0,111030.0,0.07229128]
[1761808268358,0.42032,111040.0,111030.0,0.01356128]
[1761808268566,0.48506038,111040.0,111030.0,0.01356128]
[1761808268765,0.48506038,111040.0,111030.0,0.05722128]
[1761808268954,0.42032,111040.0,111030.0,0.05722128]
[1761808269463,0.48506038,111040.0,111030.0,0.01356128]
[1761808269666,0.42032,111040.0,111030.0,0.03481128]
[1761808269964,0.42032,111040.0,111030.0,0.05722128]
[1761808270167,0.40689,111040.0,111030.0,0.07083128]
[1761808270562,0.71865,111040.0,111030.0,0.07083128]
[1761808270762,0.71865,111040.0,111030.0,0.16089328]
[1761808271069,0.38406,111040.0,111030.0,0.49760612]
[1761808271271,0.38406,111040.0,111030.0,0.80948612]
[1761808271570,0.40736,111040.0,111030.0,0.80948612]
[1761808271974,0.40736,111040.0,111030.0,0.71942412]
[1761808272267,0.40736,111040.0,111030.0,0.36910128]
[1761808272268,0.42079,111040.0,111030.0,0.36910128]
[1761808272567,0.42079,111040.0,111030.0,0.05722128]
[1761808273265,0.73267,111040.0,111030.0,0.03481128]
[1761808273458,0.73267,111040.0,111030.0,0.01356128]
[1761808274163,0.79741038,111040.0,111030.0,0.01356128]
[1761808276868,0.73267,111040.0,111030.0,0.01356128]
[1761808277769,0.73267,111040.0,111030.0,0.05871128]
[1761808278359,0.73267,111040.0,111030.0,0.03578128]
[1761808279471,0.73267,111040.0,111030.0,0.01356128]
[1761808280466,1.33267,111040.0,111030.0,0.01356128]
[1761808280670,1.02079,111040.0,111030.0,0.03578128]
[1761808280872,0.73251,111040.0,111030.0,0.07136128]
[1761808282058,0.73251,111040.0,111030.0,0.05871128]
[1761808282868,0.73251,111040.0,111030.0,0.01356128]
[1761808283068,0.73251,111040.0,111030.0,0.05871128]
[1761808283777,0.73251,111040.0,111030.0,0.25956498]
[1761808283977,0.73251,111040.0,111030.0,0.27221498]
[1761808284578,0.73239,111040.0,111030.0,0.07136128]
[1761808284766,0.73239,111040.0,111030.0,0.27221498]
[1761808285169,0.73239,111040.0,111030.0,0.25956498]
[1761808285566,0.40736,111040.0,111030.0,0.27221498]
[1761808286175,0.42067,111040.0,111030.0,0.27221498]
[1761808286575,0.42067,111040.0,111030.0,0.25956498]
[1761808286883,0.42067,111040.0,111030.0,0.03578128]
[1761808287079,0.42067,111040.0,111030.0,0.05871128]
[1761808287280,0.42067,111040.0,111030.0,0.21940064]
[1761808287582,0.40736,111040.0,111030.0,0.23205064]
[1761808288079,0.39314807,111090.0,111070.0,0.03237]
[1761808288278,0.12835814,111130.0,111100.0,0.00944]
[1761808288466,0.07881592,111130.0,111120.0,0.04515]
[1761808288672,0.01331,111140.0,111130.0,0.0578]
[1761808288673,0.0443,111140.0,111130.0,0.0578]
[1761808288868,0.0135,111150.0,111140.0,0.0578]
[1761808289177,0.05614246,111160.0,111150.0,0.04515]
[1761808289384,0.05614246,111160.0,111150.0,0.61986535]
[1761808289680,0.00544,111170.0,111150.0,0.46433383]
[1761808289881,0.3266,111160.0,111150.0,0.01356128]
[1761808290071,0.3266,111160.0,111150.0,0.37436128]
[1761808290270,0.33204,111160.0,111150.0,0.57471535]
[1761808290474,0.69284,111160.0,111150.0,0.01356128]
[1761808290878,0.89587407,111160.0,111150.0,0.01356128]
[1761808291070,0.69552,111160.0,111150.0,0.01356128]
[1761808291269,0.37524,111160.0,111150.0,0.01356128]
[1761808291475,1.49327407,111160.0,111150.0,0.01356128]
[1761808291687,0.90051407,111160.0,111150.0,0.00812128]
[1761808291889,0.89783407,111160.0,111150.0,0.00812128]
[1761808292073,0.58283407,111160.0,111150.0,0.00812128]
[1761808292273,0.89783407,111160.0,111150.0,0.00812128]
[1761808292480,0.58015407,111160.0,111150.0,0.00812128]
[1761808292776,0.89779407,111160.0,111150.0,0.00812128]
[1761808292978,0.6974,111160.0,111150.0,0.00812128]
[1761808293271,0.6974,111160.0,111130.0,0.37345]
[1761808293272,1.09178814,111160.0,111120.0,0.37345]
[1761808293471,0.56115407,111140.0,111110.0,0.4186]
[1761808293674,1.13130814,111120.0,111080.0,0.37345]
[1761808293974,1.13130814,111120.0,111080.0,0.38225287]
[1761808293975,0.20935407,111100.0,111080.0,0.38225287]
[1761808294172,0.009,111100.0,111090.0,0.04522116]
[1761808294378,0.31776,111100.0,111090.0,0.40602116]
[1761808294575,0.31776,111100.0,111090.0,0.42856283]
[1761808294777,0.56115407,111130.0,111100.0,0.05765]
[1761808294981,0.56115407,111120.0,111100.0,0.05765]
[1761808295178,0.31772,111110.0,111100.0,0.05765]
[1761808295487,0.009,111110.0,111100.0,0.05765]
[1761808295686,0.32668,111110.0,111100.0,0.05765]
[1761808296870,0.009,111110.0,111100.0,0.05765]
[1761808297077,0.32656,111110.0,111100.0,0.41845]
[1761808297387,0.32756,111110.0,111100.0,0.41845]
[1761808297589,0.01,111110.0,111100.0,0.41845]
[1761808297779,0.32752,111110.0,111100.0,0.41845]
[1761808297980,0.32752,111110.0,111100.0,0.61880407]
[1761808298595,0.3608,111190.0,111140.0,0.03437]
[1761808298791,0.06474038,111200.0,111170.0,0.04486]
[1761808298792,0.63378488,111180.0,111170.0,0.04486]
[1761808299089,0.02908,111210.0,111200.0,0.05765]
[1761808299386,0.3682,111210.0,111200.0,0.25800407]
[1761808299591,0.04016,111200.0,111190.0,0.60601407]
[1761808299887,0.04916,111200.0,111190.0,0.40566]
[1761808300389,0.009,111210.0,111200.0,0.05765]
[1761808300592,0.31592,111220.0,111200.0,0.41845]
[1761808300777,0.009,111210.0,111200.0,0.37359]
[1761808300978,0.029,111210.0,111190.0,0.3608]
[1761808301277,0.33008,111200.0,111190.0,0.60601407]
[1761808301473,0.33008,111200.0,111190.0,0.3608]
[1761808301995,0.33008,111200.0,111190.0,0.40566]
[1761808302986,0.3608,111240.0,111220.0,0.05765]
[1761808303177,0.68192,111240.0,111220.0,0.41845]
[1761808303488,0.009,111230.0,111220.0,0.41845]
[1761808304991,0.009,111230.0,111220.0,1.91845]
[1761808305391,0.009,111230.0,111220.0,2.11880407]
[1761808305581,0.009,111230.0,111220.0,1.91845]
[1761808306381,0.42554038,111250.0,111240.0,0.03607]
[1761808306581,0.74702038,111250.0,111240.0,0.05765]
[1761808307087,0.02974038,111260.0,111250.0,0.1347438]
[1761808307289,0.0907692,111280.0,111270.0,0.04486]
[1761808307290,0.0001185,111280.0,111270.0,0.04486]
[1761808307492,0.0228785,111280.0,111270.0,0.40566]
[1761808307681,0.0318785,111280.0,111270.0,0.40566]
[1761808307881,0.35479257,111290.0,111270.0,0.3608]
[1761808308188,0.03662,111280.0,111270.0,0.38238]
[1761808308386,0.36922,111280.0,111270.0,0.3608]
[1761808308591,0.03662,111260.0,111250.0,0.38408]
[1761808308794,0.35918,111260.0,111250.0,0.40566]
[1761808308989,0.35918,111260.0,111250.0,0.38408]
[1761808309193,0.03662,111250.0,111240.0,0.61880407]
[1761808309495,0.03662,111250.0,111240.0,0.47980925]
[1761808309901,0.03662,111250.0,111240.0,0.49386154]
[1761808310103,0.03662,111250.0,111240.0,0.46988735]
[1761808310786,0.03662,111250.0,111240.0,0.05143735]
[1761808310993,0.03662,111250.0,111240.0,0.02757576]
[1761808311194,0.03077395,111250.0,111240.0,0.04036576]
[1761808311402,0.39157395,111250.0,111240.0,0.02757576]
[1761808312196,0.35305395,111250.0,111240.0,0.08722576]
[1761808312492,0.35301395,111250.0,111240.0,0.08722576]
[1761808312796,1.31381395,111250.0,111240.0,0.02957576]
[1761808313484,0.71377395,111250.0,111240.0,0.04236576]
[1761808313686,0.71377395,111250.0,111240.0,0.06564576]
[1761808313886,0.35297395,111250.0,111240.0,0.08722576]
[1761808314086,0.35297395,111250.0,111240.0,0.08522576]
[1761808314288,0.3258,111260.0,111250.0,0.04486]
[1761808314489,0.04385,111290.0,111280.0,0.05765]
[1761808314689,0.05385,111290.0,111280.0,0.02757576]
[1761808315299,0.41465,111290.0,111280.0,0.02757576]
[1761808315797,0.05385,111290.0,111280.0,0.02757576]
[1761808316299,0.04385,111290.0,111280.0,0.63358983]
[1761808316498,0.04385,111310.0,111300.0,0.02328]
[1761808316689,0.04385,111310.0,111300.0,0.01405229]
[1761808316690,0.40465,111310.0,111300.0,0.01405229]
[1761808316894,0.61500407,111310.0,111300.0,0.02732806]
[1761808317697,0.93780407,111310.0,111300.0,0.02732806]
[1761808318599,0.94048407,111310.0,111300.0,0.02732806]
[1761808318996,0.94048407,111310.0,111300.0,0.02598552]
[1761808319296,0.73745,111310.0,111300.0,0.02598552]
[1761808319803,0.94048407,111310.0,111300.0,0.02598552]
[1761808319989,0.73745,111310.0,111300.0,0.02598552]
[1761808320598,0.41465,111310.0,111300.0,0.04926552]
[1761808320798,0.04385,111310.0,111300.0,0.64478959]
[1761808321106,0.36653,111310.0,111300.0,0.44442152]
[1761808321691,0.36653,111310.0,111300.0,0.38677152]
[1761808321892,0.36653,111310.0,111300.0,0.43163152]
[1761808322396,0.36669,111330.0,111320.0,0.05765]
[1761808322607,0.36669,111330.0,111320.0,0.07091177]
[1761808322898,0.36669,111330.0,111320.0,0.01326177]
[1761808323493,0.36669,111330.0,111320.0,0.03654177]
[1761808324304,0.32284,111330.0,111320.0,0.63206584]
[1761808324493,0.36785,111330.0,111320.0,0.63206584]
[1761808324698,0.72865,111330.0,111320.0,0.01326177]
[1761808325603,0.93900407,111330.0,111320.0,0.01326177]
[1761808325907,0.73865,111330.0,111320.0,0.01326177]
[1761808326601,0.41581,111330.0,111320.0,0.01326177]
[1761808326802,0.73861,111330.0,111320.0,0.01326177]
[1761808327001,0.72861,111330.0,111320.0,0.03614177]
[1761808327403,0.92892407,111330.0,111320.0,0.01326177]
[1761808327597,0.97160407,111330.0,111290.0,0.3608]
[1761808327798,0.04479,111300.0,111290.0,0.38368]
[1761808328107,0.36759,111300.0,111290.0,0.40635]
[1761808330097,0.36759,111300.0,111290.0,0.40835]
[1761808330703,0.94107407,111300.0,111290.0,0.002]
[1761808331003,0.74072,111300.0,111290.0,0.03829868]
[1761808331188,0.74072,111300.0,111290.0,0.01541868]
[1761808331391,0.95375407,111300.0,111290.0,0.01541868]
[1761808332605,0.95107407,111300.0,111290.0,0.01541868]
[1761808332906,0.95375407,111300.0,111290.0,0.01541868]
[1761808333104,0.95107407,111300.0,111290.0,0.01541868]
[1761808334110,0.75072,111300.0,111290.0,0.01541868]
[1761808334305,0.41792,111300.0,111290.0,0.01541868]
[1761808334499,0.7402,111300.0,111290.0,0.01541868]
[1761808335799,0.7402,111300.0,111290.0,0.03829868]
[1761808336108,0.04418,111310.0,111300.0,0.05964]
[1761808336299,0.37327,111320.0,111310.0,0.04601]
[1761808336300,0.72734,111320.0,111310.0,0.04601]
[1761808336500,0.72734,111320.0,111310.0,0.05942868]
[1761808336896,1.13537814,111320.0,111310.0,0.01341868]
[1761808337101,0.94502407,111320.0,111310.0,0.01341868]
[1761808337805,0.94618407,111320.0,111310.0,0.01341868]
[1761808338212,0.74583,111320.0,111310.0,0.03740318]
[1761808338508,0.73599,111320.0,111310.0,0.06123318]
[1761808338813,0.36782,111320.0,111310.0,0.05942868]
[1761808339111,0.40498,111330.0,111320.0,0.04601]
[1761808339317,0.36778,111330.0,111320.0,0.09710571]
[1761808339704,0.36778,111330.0,111320.0,0.11044837]
[1761808341910,0.04418,111330.0,111320.0,0.11044837]
[1761808342217,0.04418,111340.0,111330.0,0.04601]
[1761808342404,0.36746,111340.0,111330.0,0.09681837]
[1761808342801,0.06756552,111350.0,111340.0,0.05964]
[1761808343111,0.0324778,111350.0,111340.0,0.76409994]
[1761808343415,0.0324778,111350.0,111340.0,0.48030239]
[1761808344221,0.0324778,111350.0,111340.0,1.13836744]
[1761808344409,0.0324778,111350.0,111340.0,1.23086544]
[1761808344607,0.0324778,111350.0,111340.0,1.83086544]
[1761808345116,0.0324778,111350.0,111340.0,0.90613564]
[1761808345308,0.0324778,111350.0,111340.0,0.79016371]
[1761808345507,0.0324778,111350.0,111340.0,0.80771186]
[1761808345815,0.0324778,111350.0,111340.0,0.80503186]
[1761808346207,0.0324778,111350.0,111340.0,0.81645691]
[1761808346401,0.0324778,111350.0,111340.0,1.13969691]
[1761808346817,0.0324778,111350.0,111340.0,1.21664636]
[1761808347115,0.0324778,111350.0,111340.0,0.48172979]
[1761808347417,0.0324778,111350.0,111340.0,0.47267577]
[1761808347418,0.0766578,111350.0,111340.0,0.47267577]
[1761808347601,0.0543078,111350.0,111340.0,0.47267577]
[1761808348604,0.0866578,111350.0,111340.0,0.47267577]
[1761808348811,0.4097378,111350.0,111340.0,0.43686577]
[1761808349107,0.7705378,111350.0,111340.0,0.02818874]
[1761808349306,1.10524285,111350.0,111340.0,0.02818874]
[1761808349510,1.10524285,111350.0,111340.0,0.05220513]
[1761808350417,1.10792285,111350.0,111340.0,0.02818874]
[1761808351017,0.7705378,111350.0,111340.0,0.02818874]
[1761808351316,1.10524285,111350.0,111340.0,0.02818874]
[1761808351616,1.10524285,111350.0,111340.0,0.02618874]
[1761808351815,0.74444285,111350.0,111340.0,0.02618874]
[1761808352004,0.0866578,111350.0,111340.0,0.02618874]
[1761808352205,0.0866578,111350.0,111340.0,0.43299874]
[1761808352515,0.0866578,111350.0,111340.0,0.44662874]
[1761808352715,0.3994178,111350.0,111340.0,0.44662874]
[1761808353915,0.3994178,111350.0,111340.0,0.41081874]
[1761808354716,0.3994178,111350.0,111340.0,0.43299874]
[1761808355020,0.3552378,111350.0,111340.0,0.44617874]
[1761808355422,0.3552378,111350.0,111340.0,0.47018129]
[1761808355717,0.4002278,111350.0,111340.0,0.43482129]
[1761808355924,0.7610278,111350.0,111340.0,0.02618874]
[1761808356124,0.7810278,111350.0,111340.0,0.02618874]
[1761808357505,0.4165278,111350.0,111340.0,0.08490874]
[1761808357711,0.0324778,111350.0,111340.0,0.80442066]
[1761808358115,0.0774678,111350.0,111340.0,0.07287561]
[1761808358316,0.3999478,111350.0,111340.0,0.04886874]
[1761808359209,0.3999478,111350.0,111340.0,0.02618874]
[1761808360207,0.7607478,111350.0,111340.0,0.02618874]
[1761808360518,1.3707478,111350.0,111340.0,0.02618874]
[1761808360821,1.10813285,111350.0,111340.0,0.07358969]
[1761808361217,1.14813285,111350.0,111340.0,0.05019576]
[1761808361821,1.10813285,111350.0,111340.0,0.05019576]
[1761808363026,1.15813285,111350.0,111340.0,0.05019576]
[1761808363613,1.10813285,111350.0,111340.0,0.05019576]
[1761808364809,1.0509478,111350.0,111340.0,0.05019576]
[1761808365014,0.3992678,111350.0,111340.0,0.08288968]
[1761808365321,0.7700678,111350.0,111340.0,0.0369943]
[1761808365708,1.10745285,111350.0,111340.0,0.09268158]
[1761808365908,1.10745285,111350.0,111340.0,0.06069628]
[1761808366210,1.10745285,111350.0,111340.0,0.07357918]
[1761808367228,1.23745285,111350.0,111340.0,0.0498772]
[1761808367416,1.21745285,111350.0,111340.0,0.0498772]
[1761808367616,1.35745285,111350.0,111340.0,0.0498772]
[1761808368020,1.10745285,111350.0,111340.0,0.0498772]
[1761808368220,1.42745285,111350.0,111340.0,0.0498772]
[1761808368614,1.22745285,111350.0,111340.0,0.0498772]
[1761808369632,2.00745285,111350.0,111340.0,0.0498772]
[1761808369922,0.00194,111330.0,111320.0,0.05568728]
[1761808370122,1.79232505,111330.0,111320.0,0.02370198]
[1761808370318,2.39232505,111330.0,111320.0,0.02370198]
[1761808371216,0.00194,111320.0,111310.0,0.0319853]
[1761808371416,0.40274,111320.0,111310.0,0.0319853]
[1761808372328,0.40274,111320.0,111310.0,0.0329853]
[1761808374328,0.40274,111320.0,111310.0,0.05672205]
[1761808374725,0.40542,111320.0,111310.0,0.05672205]
[1761808374926,0.40274,111320.0,111310.0,0.05672205]
[1761808375116,0.40274,111320.0,111310.0,0.02473675]
[1761808375528,0.40274,111320.0,111310.0,0.0329853]
[1761808376132,0.40274,111320.0,111310.0,0.001]
[1761808377225,0.73744505,111320.0,111310.0,0.001]
[1761808377426,0.74012505,111320.0,111310.0,0.001]
[1761808377625,0.73744505,111320.0,111310.0,0.001]
[1761808378338,0.74012505,111320.0,111310.0,0.001]
[1761808378831,0.97012505,111320.0,111310.0,0.001]
[1761808379231,0.73744505,111320.0,111310.0,0.001]
[1761808380729,0.40274,111320.0,111310.0,0.001]
[1761808381322,0.51542,111320.0,111310.0,0.001]
[1761808381529,0.74012505,111320.0,111310.0,0.001]
[1761808381727,0.00194,111310.0,111300.0,0.05917]
[1761808381928,0.33238,111310.0,111300.0,0.09592141]
[1761808384035,0.33238,111310.0,111300.0,0.0959168]
[1761808384338,0.33238,111310.0,111300.0,0.0969168]
[1761808386552,0.01194,111310.0,111300.0,0.0969168]
[1761808386746,0.69550505,111330.0,111320.0,0.05941]
[1761808386747,0.36274,111330.0,111320.0,0.05941]
[1761808387042,0.3608,111340.0,111330.0,0.04545]
[1761808387232,0.74169,111340.0,111330.0,0.04545]
[1761808387542,0.38186,111340.0,111330.0,0.04545]
[1761808387835,0.37992,111340.0,111330.0,0.74095505]
[1761808388035,0.37992,111340.0,111330.0,0.40625]
[1761808389135,0.38186,111340.0,111330.0,0.04545]
[1761808389733,0.38186,111340.0,111330.0,0.05435171]
[1761808390741,0.38186,111340.0,111330.0,0.04545]
[1761808391635,0.37992,111340.0,111330.0,0.04545]
[1761808391844,0.37992,111340.0,111330.0,0.40625]
[1761808392142,0.0344178,111350.0,111340.0,0.05941]
[1761808392337,0.4239378,111350.0,111340.0,0.05941]
[1761808392930,0.1034478,111350.0,111340.0,0.65941]
[1761808393129,0.4228878,111350.0,111340.0,0.65941]
[1761808393327,0.4228878,111350.0,111340.0,0.05941]
[1761808393544,0.4219178,111350.0,111340.0,0.05941]
[1761808394145,0.4219178,111350.0,111340.0,0.42021]
[1761808394439,0.1024778,111350.0,111340.0,0.75491505]
[1761808394744,0.0324778,111350.0,111340.0,1.44741335]
[1761808395134,0.0324778,111350.0,111340.0,1.47098765]
[1761808395338,0.0324778,111350.0,111340.0,1.1362826]
[1761808395538,0.0324778,111350.0,111340.0,1.47098765]
[1761808395732,0.0324778,111350.0,111340.0,1.38116935]
[1761808395937,0.0324778,111350.0,111340.0,1.47098765]
[1761808397545,0.0324778,111350.0,111340.0,0.4464643]
[1761808397737,0.0324778,111350.0,111340.0,0.7811701]
[1761808397939,0.0324778,111350.0,111340.0,0.85429372]
[1761808398138,0.0324778,111350.0,111340.0,0.94411182]
[1761808398649,0.3821216,111380.0,111370.0,0.04534]
[1761808398650,0.0434716,111380.0,111370.0,0.04534]
[1761808398838,0.6004416,111380.0,111370.0,0.04534]
[1761808399248,0.6225916,111380.0,111370.0,0.04534]
[1761808399645,0.6444716,111380.0,111370.0,0.04534]
[1761808400451,0.6444716,111380.0,111370.0,0.05443997]
[1761808401043,0.04403,111370.0,111360.0,0.41933]
[1761808401647,0.04403,111360.0,111350.0,0.41521386]
[1761808401838,0.37291,111360.0,111350.0,0.41521386]
[1761808404149,0.01,111360.0,111350.0,0.61492621]
[1761808404350,0.31864,111360.0,111350.0,0.61492621]
[1761808404654,0.31864,111360.0,111350.0,0.61760621]
[1761808404852,0.31864,111360.0,111350.0,0.61492621]
[1761808406149,0.31664,111360.0,111350.0,0.41521386]
[1761808406353,0.31664,111360.0,111350.0,0.61492621]
[1761808406554,0.3839116,111380.0,111370.0,0.04534]
[1761808406750,0.9039116,111380.0,111370.0,0.04534]
[1761808406950,0.7020316,111380.0,111370.0,0.04534]
[1761808407157,0.7020316,111380.0,111370.0,0.24505235]
[1761808407158,0.7239116,111380.0,111370.0,0.24505235]
[1761808407355,0.7239116,111380.0,111370.0,0.04534]
[1761808407548,0.02215,111370.0,111360.0,0.37399]
[1761808407753,0.04403,111370.0,111360.0,0.41933]
[1761808408051,0.05403,111370.0,111360.0,0.41933]
[1761808409452,0.05403,111370.0,111360.0,0.05853]
[1761808416652,0.41483,111370.0,111360.0,0.05853]
[1761808417566,0.04455,111360.0,111350.0,0.41430386]
[1761808417855,0.04455,111330.0,111320.0,0.44293746]
[1761808418061,0.36219,111340.0,111330.0,0.04443]
[1761808418562,0.37219,111340.0,111330.0,0.04443]
[1761808418861,0.37219,111340.0,111330.0,0.05363941]
[1761808421765,0.37219,111340.0,111330.0,0.05663941]
[1761808422264,0.36219,111340.0,111330.0,0.05663941]
[1761808422565,0.36219,111340.0,111330.0,0.08023885]
[1761808422755,0.38219,111340.0,111330.0,0.08023885]
[1761808425462,0.36219,111340.0,111330.0,0.10392573]
[1761808425767,0.36203,111340.0,111330.0,0.30363808]
[1761808425952,0.38191,111340.0,111330.0,0.10392573]
[1761808426152,0.36191,111340.0,111330.0,0.11679573]
[1761808427067,0.39523,111340.0,111330.0,0.05949573]
[1761808427269,0.59494235,111340.0,111330.0,0.02655488]
[1761808427567,1.55574235,111340.0,111330.0,0.02655488]
[1761808427752,0.95574235,111340.0,111330.0,0.02655488]
[1761808428072,0.95574235,111340.0,111330.0,0.08385488]
[1761808428073,0.72271,111340.0,111330.0,0.08385488]
[1761808428361,0.73271,111340.0,111330.0,0.08385488]
[1761808428569,0.37191,111340.0,111330.0,0.09278678]
[1761808428956,0.36191,111340.0,111330.0,0.09278678]
[1761808430565,0.04455,111340.0,111330.0,0.29249913]
[1761808430765,0.36187,111340.0,111330.0,0.31623057]
[1761808430962,0.33921,111340.0,111330.0,0.67703057]
[1761808431163,0.36187,111340.0,111330.0,0.67703057]
[1761808434061,0.36187,111340.0,111330.0,0.67701023]
[1761808434265,0.04455,111340.0,111330.0,0.67701023]
[1761808434470,0.36151,111340.0,111330.0,0.67701023]
[1761808436573,0.04455,111340.0,111330.0,0.67701023]
[1761808436770,0.36135,111340.0,111330.0,0.67701023]
[1761808437476,0.36135,111340.0,111330.0,0.63709793]
[1761808438369,0.3168,111340.0,111330.0,0.79689798]
[1761808438564,0.41595,111370.0,111360.0,0.04443]
[1761808438764,1.45243005,111370.0,111360.0,0.21710005]
[1761808438975,1.45243005,111370.0,111360.0,0.04443]
[1761808439168,0.04455,111360.0,111350.0,0.04443]
[1761808439373,0.60515005,111360.0,111350.0,0.24064663]
[1761808439575,0.61575005,111360.0,111350.0,0.02354658]
[1761808439775,0.04455,111350.0,111340.0,0.21710005]
[1761808439970,0.04455,111350.0,111340.0,0.24065113]
[1761808439971,0.36123,111350.0,111340.0,0.24065113]
[1761808440278,0.36123,111350.0,111340.0,0.40045118]
[1761808440875,0.36123,111350.0,111340.0,0.76125118]
[1761808441577,0.37123,111350.0,111340.0,0.40045118]
[1761808441965,0.37123,111350.0,111340.0,0.76125118]
[1761808442366,0.37123,111350.0,111340.0,0.76325118]
[1761808443179,0.37123,111350.0,111340.0,0.60345113]
[1761808443875,0.37123,111350.0,111340.0,0.76325118]
[1761808444082,0.37123,111350.0,111340.0,0.60345113]
[1761808444381,0.37123,111350.0,111340.0,0.44365108]
[1761808444686,0.37123,111350.0,111340.0,0.60345113]
[1761808445377,0.53103005,111350.0,111340.0,0.60345113]
[1761808447477,0.37123,111350.0,111340.0,0.60345113]
[1761808447678,0.37123,111350.0,111340.0,0.44365108]
[1761808447880,0.37123,111350.0,111340.0,0.60345113]
[1761808448776,0.53103005,111350.0,111340.0,0.60345113]
[1761808448977,0.53103005,111350.0,111340.0,0.24065113]
[1761808449584,0.53995005,111350.0,111340.0,0.08085108]
[1761808449786,0.53927005,111350.0,111340.0,0.04678108]
[1761808449981,0.53927005,111350.0,111340.0,0.02355108]
[1761808450173,0.53927005,111350.0,111340.0,0.04616108]
[1761808450774,0.53927005,111350.0,111340.0,0.06741108]
[1761808451181,0.37947,111350.0,111340.0,0.06741108]
[1761808451584,0.53927005,111350.0,111340.0,0.06741108]
[1761808452294,0.53927005,111350.0,111340.0,0.02355108]
[1761808452793,0.90007005,111350.0,111340.0,0.02355108]
[1761808453686,0.53035005,111350.0,111340.0,0.60292113]
[1761808453880,0.37055,111350.0,111340.0,0.62664415]
[1761808454280,0.37055,111350.0,111340.0,0.26584415]
[1761808454681,0.37055,111350.0,111340.0,0.24212113]
[1761808454886,0.53035005,111350.0,111340.0,0.24212113]
[1761808455581,0.53035005,111350.0,111340.0,0.60292113]
[1761808455782,0.53927005,111350.0,111340.0,0.04616108]
[1761808455981,0.53927005,111350.0,111340.0,0.02355108]
[1761808457292,0.53927005,111350.0,111340.0,0.04543108]
[1761808458984,0.53927005,111350.0,111340.0,0.06778108]
[1761808459184,0.37055,111350.0,111340.0,0.08159108]
[1761808459394,0.53035005,111350.0,111340.0,0.08159108]
[1761808459591,0.53927005,111350.0,111340.0,0.06778108]
[1761808459893,0.53927005,111350.0,111340.0,0.22758113]
[1761808460094,0.53927005,111350.0,111340.0,0.06778108]
[1761808460287,0.53927005,111350.0,111340.0,0.22758113]
[1761808460686,0.53035005,111350.0,111340.0,0.60219113]
[1761808460983,0.53927005,111350.0,111340.0,0.08159108]
[1761808461292,0.53927005,111350.0,111340.0,0.24139113]
[1761808461491,0.53927005,111350.0,111340.0,0.08159108]
[1761808461792,0.53927005,111350.0,111340.0,0.06778108]
[1761808462186,0.53927005,111350.0,111340.0,0.08159108]
[1761808463295,0.53929343,111350.0,111340.0,0.06778108]
[1761808463792,0.37055,111350.0,111340.0,0.08159108]
[1761808464091,0.53037343,111350.0,111340.0,0.08159108]
[1761808464288,0.53929343,111350.0,111340.0,0.06778108]
[1761808465494,0.37947,111350.0,111340.0,0.08159108]
[1761808465686,0.37947,111350.0,111340.0,0.06778108]
[1761808465687,0.53929343,111350.0,111340.0,0.06778108]
[1761808465889,1.02009343,111350.0,111340.0,0.02355108]
[1761808466087,0.90277343,111350.0,111340.0,0.02355108]
[1761808466385,0.90277343,111350.0,111320.0,0.42937832]
[1761808466386,0.04424,111330.0,111320.0,0.44162302]
[1761808466586,0.54914343,111330.0,111320.0,0.46520363]
[1761808466788,0.38932,111330.0,111320.0,0.46520363]
[1761808466988,0.55974343,111330.0,111320.0,0.45233363]
[1761808467297,0.55974343,111330.0,111320.0,0.40810363]
[1761808467800,1.34036686,111330.0,111320.0,0.04730363]
[1761808467991,1.34036686,111330.0,111320.0,0.02358061]
[1761808468400,1.34036686,111330.0,111320.0,0.02558061]
[1761808468795,0.10209081,111380.0,111340.0,0.01381]
[1761808468796,0.36412,111370.0,111340.0,0.01381]
[1761808468993,0.04424,111350.0,111340.0,0.62599738]
[1761808469491,0.05424,111350.0,111340.0,0.60224404]
[1761808469801,0.05424,111350.0,111340.0,0.44242061]
[1761808471001,0.21406343,111350.0,111340.0,0.44242061]
[1761808471206,0.21406343,111350.0,111340.0,0.08162061]
[1761808471587,0.57486343,111350.0,111340.0,0.09045574]
[1761808471787,0.22466343,111350.0,111340.0,0.06781061]
[1761808471993,0.58546343,111350.0,111340.0,0.06781061]
[1761808473301,0.76059186,111350.0,111340.0,0.02358061]
[1761808474190,0.76059186,111350.0,111340.0,0.04546061]
[1761808474591,0.76059186,111350.0,111340.0,0.02358061]
[1761808475395,0.42564,111350.0,111340.0,0.06935061]
[1761808475598,0.76059186,111350.0,111340.0,0.06935061]
[1761808475911,0.76059186,111350.0,111340.0,0.02358061]